bitfinex/quotes_SOLUSD_20251002
["timestamp","ask_amount","ask_price","bid_price","bid_amount"]
[1759393258319,80.8,223.74,223.73,20.8]
[1759393259627,80.8,223.74,223.73,25.26967326]
[1759393260650,80.8,223.74,223.73,25.97967326]
[1759393260862,0.1,223.81,223.73,25.97967326]
[1759393260863,80.8,223.78,223.73,37.15385642]
[1759393261028,80.8,223.78,223.74,0.71]
[1759393261421,80.8,223.78,223.73,36.44385642]
[1759393261422,0.7,223.77,223.73,36.44385642]
[1759393263551,0.7,223.77,223.73,37.15385642]
[1759393263729,80.8,223.78,223.73,37.15385642]
[1759393263930,81.5,223.78,223.73,37.15385642]
[1759393266056,80.8,223.77,223.73,37.15385642]
[1759393267652,80.8,223.77,223.73,36.44385642]
[1759393267859,0.7,223.76,223.73,20.8]
[1759393268028,81.5,223.75,223.73,25.26966707]
[1759393268235,0.7,223.74,223.73,25.26966707]
[1759393270455,80.8,223.75,223.73,25.26966707]
[1759393271474,80.8,223.75,223.74,20.8]
[1759393271640,81.5,223.75,223.74,25.26947349]
[1759393272060,81.5,223.75,223.74,20.8]
[1759393272265,81.5,223.75,223.74,25.26947349]
[1759393273336,80.8,223.75,223.74,25.26947349]
[1759393276443,81.5,223.75,223.74,25.26947349]
[1759393277765,80.8,223.74,223.72,504.46967877]
[1759393277969,81.5,223.74,223.72,504.46967877]
[1759393278466,80.8,223.74,223.72,504.46967877]
[1759393281064,81.5,223.74,223.72,504.46967877]
[1759393281270,80.8,223.74,223.72,504.46967877]
[1759393282564,80.8,223.74,223.72,505.14967877]
[1759393282772,80.8,223.74,223.72,504.46967877]
[1759393283557,80.8,223.74,223.73,0.68]
[1759393283757,80.8,223.74,223.72,504.46967877]
[1759393284072,80.8,223.74,223.72,505.13967877]
[1759393284445,80.8,223.74,223.73,5.13967326]
[1759393286857,80.8,223.8,223.73,16.31385642]
[1759393287178,133.0,223.81,223.76,20.8]
[1759393287179,84.13717637,223.79,223.76,20.8]
[1759393287355,80.8,223.79,223.76,21.47]
[1759393287972,80.8,223.79,223.77,4.46887429]
[1759393288492,81.46,223.79,223.77,25.26887429]
[1759393289360,0.66,223.78,223.77,4.46887429]
[1759393289871,0.66,223.78,223.72,500.67]
[1759393289872,0.66,223.78,223.74,4.46932709]
[1759393290054,3.99653133,223.77,223.75,20.8]
[1759393290250,3.99653133,223.76,223.73,4.46967326]
[1759393290457,3.99653133,223.75,223.73,4.46967326]
[1759393290665,80.8,223.79,223.74,20.8]
[1759393290873,3.33716042,223.78,223.74,20.8]
[1759393291059,3.99716042,223.77,223.74,20.8]
[1759393291266,3.99716042,223.76,223.74,20.8]
[1759393291462,3.99716042,223.75,223.74,20.8]
[1759393294875,3.99716042,223.75,223.72,500.0]
[1759393295079,3.99716042,223.74,223.72,500.0]
[1759393295382,3.99716042,223.73,223.72,504.46987305]
[1759393296880,3.99716042,223.73,223.72,500.0]
[1759393302884,4.00156866,223.73,223.72,500.0]
[1759393307296,3.99987924,223.73,223.72,500.0]
[1759393309393,21.6991279,223.73,223.72,500.0]
[1759393310077,19.34602771,223.73,223.72,500.0]
[1759393310791,14.87635445,223.73,223.72,500.0]
[1759393312994,21.6991279,223.73,223.72,500.0]
[1759393315278,18.35924866,223.73,223.72,500.0]
[1759393315783,21.69661878,223.73,223.72,500.0]
[1759393321087,55.91661878,223.73,223.72,475.48602194]
[1759393321287,69.34694894,223.73,223.72,475.48602194]
[1759393321607,69.34694894,223.73,223.72,441.84733063]
[1759393321895,69.34694894,223.73,223.72,393.0584239]
[1759393322104,69.34694894,223.73,223.72,368.01248563]
[1759393322890,18.68351859,223.73,223.72,368.01248563]
[1759393323200,14.21384533,223.73,223.72,368.01248563]
[1759393323396,3.33737012,223.73,223.72,368.69248563]
[1759393324283,3.33140149,223.73,223.72,368.69248563]
[1759393325511,21.75065015,223.73,223.72,368.01248563]
[1759393325693,21.03065015,223.73,223.72,368.01248563]
[1759393326008,16.56097689,223.73,223.72,368.01248563]
[1759393326397,3.33140149,223.73,223.72,368.69248563]
[1759393329817,3.33140149,223.73,223.72,368.01248563]
[1759393330623,3.33140149,223.73,223.72,368.69248563]
[1759393330805,3.33140149,223.73,223.72,368.01248563]
[1759393332115,21.75065015,223.73,223.72,368.01248563]
[1759393334321,16.56097689,223.73,223.72,368.01248563]
[1759393334992,21.03065015,223.73,223.72,368.01248563]
[1759393335196,16.56097689,223.73,223.72,368.01248563]
[1759393336129,21.03065015,223.73,223.72,368.01248563]
[1759393338821,21.75065015,223.73,223.72,368.01248563]
[1759393340006,21.75065015,223.73,223.72,342.31656371]
[1759393340007,35.17065015,223.73,223.72,342.31656371]
[1759393340320,48.60098031,223.73,223.72,316.81905103]
[1759393340527,48.60098031,223.73,223.72,259.5125823]
[1759393340705,48.60098031,223.73,223.72,230.76191151]
[1759393340904,48.60098031,223.73,223.72,171.60686993]
[1759393341106,48.60098031,223.73,223.72,139.1318301]
[1759393341309,48.60098031,223.73,223.72,60.01007316]
[1759393342033,46.24788012,223.73,223.72,36.40867825]
[1759393342336,34.32519143,223.73,223.72,36.40867825]
[1759393346249,34.32519143,223.73,223.62,500.0]
[1759393346250,43.71132175,223.64,223.62,500.0]
[1759393346532,47.04272324,223.63,223.62,500.0]
[1759393346824,47.04272324,223.63,223.62,504.47187192]
[1759393347031,43.71132175,223.63,223.62,504.47187192]
[1759393348133,43.71132175,223.63,223.62,504.92187192]
[1759393349740,43.71132175,223.63,223.62,518.34919652]
[1759393350616,43.71132175,223.63,223.62,500.0]
[1759393350933,3.33979037,223.63,223.62,500.0]
[1759393352842,3.33979037,223.63,223.62,504.47187192]
[1759393354538,3.33979037,223.63,223.62,500.0]
[1759393355922,14.21626558,223.63,223.62,500.0]
[1759393357421,18.68793753,223.63,223.62,500.0]
[1759393358430,19.34793753,223.63,223.62,500.0]
[1759393358656,18.68793753,223.63,223.62,500.0]
[1759393358952,19.34793753,223.63,223.62,500.0]
[1759393360422,3.33979037,223.63,223.62,500.0]
[1759393368135,3.33844506,223.63,223.62,500.0]
[1759393371640,3.33844506,223.63,223.62,500.45]
[1759393371972,3.33905909,223.63,223.62,500.0]
[1759393372664,3.99905909,223.63,223.62,500.0]
[1759393372848,16.38317577,223.63,223.62,500.0]
[1759393373768,20.85484772,223.63,223.62,500.0]
[1759393376859,20.85484772,223.63,223.62,419.2]
[1759393378367,20.85484772,223.63,223.62,334.36506466]
[1759393378572,34.27484772,223.63,223.62,169.39819909]
[1759393378749,34.27484772,223.63,223.62,116.14210091]
[1759393378949,47.71239671,223.63,223.62,23.29530852]
[1759393379150,47.71239671,223.63,223.62,1e-08]
[1759393379675,10.87647521,223.57,223.53,500.0]
[1759393379852,12.38411668,223.54,223.53,500.0]
[1759393380055,15.72317577,223.54,223.53,500.0]
[1759393380553,34.31664807,223.54,223.53,500.0]
[1759393380753,20.89664807,223.54,223.53,500.0]
[1759393381146,20.89277579,223.54,223.53,500.0]
[1759393382387,16.41930349,223.54,223.53,500.0]
[1759393382591,15.71930349,223.54,223.53,500.0]
[1759393382960,20.19277579,223.54,223.53,500.0]
[1759393383586,20.89277579,223.54,223.53,500.0]
[1759393383835,18.68513432,223.54,223.53,500.0]
[1759393384084,20.19277579,223.54,223.53,500.0]
[1759393384386,14.21166202,223.54,223.53,500.67]
[1759393385052,3.33518681,223.54,223.53,500.67]
[1759393385248,132.9,223.55,223.53,500.67]
[1759393385466,143.77647521,223.55,223.54,0.67]
[1759393385671,136.23146371,223.55,223.54,0.67]
[1759393386069,136.2314142,223.55,223.54,0.67]
[1759393387626,10.87647521,223.58,223.54,0.67]
[1759393387788,3.33056799,223.57,223.54,5.1434723]
[1759393387982,3.33056799,223.56,223.55,0.67]
[1759393388616,10.87647521,223.58,223.55,0.67]
[1759393388846,3.33031129,223.57,223.55,0.67]
[1759393388991,132.9,223.6,223.56,0.67]
[1759393389304,3.32997833,223.59,223.56,0.67]
[1759393389502,132.9,223.6,223.56,0.67]
[1759393389691,3.33003558,223.59,223.56,0.67]
[1759393389886,132.9,223.6,223.56,0.67]
[1759393390103,3.33003494,223.59,223.57,0.67]
[1759393390298,132.9,223.6,223.58,0.67]
[1759393390501,3.33018626,223.59,223.58,0.67]
[1759393393131,132.9,223.6,223.58,0.67]
[1759393393725,15.2,223.59,223.58,0.67]
[1759393394396,15.2,223.59,223.58,5.14267197]
[1759393397555,15.2,223.59,223.58,0.67]
[1759393398937,15.2,223.59,223.58,5.14267197]
[1759393399735,8.65320881,223.61,223.58,5.14267197]
[1759393400144,8.65320881,223.61,223.55,11.1829586]
[1759393400364,8.65320881,223.61,223.59,0.67]
[1759393400854,8.65320881,223.61,223.6,0.67]
[1759393402258,8.65320881,223.61,223.6,5.14227191]
[1759393402835,132.9,223.67,223.6,16.32295169]
[1759393403143,10.87647521,223.69,223.61,0.66]
[1759393403144,15.2,223.69,223.61,0.66]
[1759393403345,15.2,223.69,223.63,20.8]
[1759393403649,11.56647521,223.73,223.63,20.8]
[1759393403650,11.56647521,223.73,223.64,0.66]
[1759393403868,3.32951293,223.72,223.64,0.66]
[1759393404034,15.2,223.76,223.65,20.8]
[1759393404351,10.87647521,223.73,223.65,25.27124398]
[1759393404535,13.23038572,223.71,223.65,20.8]
[1759393404733,4.04949709,223.7,223.65,20.8]
[1759393404957,0.72,223.69,223.65,20.8]
[1759393405426,10.87647521,223.71,223.65,20.8]
[1759393405427,26.79647521,223.71,223.65,0.69]
[1759393405624,3.32802952,223.7,223.65,0.69]
[1759393405850,0.72,223.7,223.65,0.69]
[1759393406350,0.72,223.7,223.65,5.16120681]
[1759393406648,0.72,223.7,223.65,4.47120681]
[1759393406863,15.2,223.71,223.66,0.69]
[1759393407234,15.2,223.71,223.66,14.11432039]
[1759393407437,15.2,223.71,223.67,0.69]
[1759393407752,15.2,223.71,223.69,20.8]
[1759393407940,0.72,223.75,223.69,21.49]
[1759393408142,11.59647521,223.75,223.69,21.49]
[1759393408333,11.59647521,223.75,223.69,25.96028821]
[1759393408532,0.72,223.75,223.69,25.96028821]
[1759393410255,15.2,223.76,223.7,0.69]
[1759393410448,15.2,223.75,223.7,0.69]
[1759393411566,15.2,223.74,223.73,20.8]
[1759393412331,15.2,223.74,223.73,21.49]
[1759393412556,8.78511087,223.78,223.74,20.8]
[1759393412743,8.78511087,223.78,223.75,0.69]
[1759393413732,8.78511087,223.78,223.74,20.8]
[1759393414082,8.78511087,223.78,223.74,21.49]
[1759393414244,8.78511087,223.78,223.75,0.69]
[1759393414941,8.78511087,223.78,223.74,8.78511087]
[1759393415282,8.78511087,223.78,223.74,0.69]
[1759393416875,8.78511087,223.78,223.74,4.4694413]
[1759393417062,8.78511087,223.78,223.75,0.69]
[1759393418642,8.78511087,223.78,223.76,0.69]
[1759393418859,8.78511087,223.78,223.75,4.46921512]
[1759393419045,8.78511087,223.78,223.75,5.15921512]
[1759393419252,9.50511087,223.78,223.75,8.78511087]
[1759393419463,9.50511087,223.78,223.74,25.26943625]
[1759393419464,0.72,223.77,223.74,20.8]
[1759393422069,8.78511087,223.78,223.74,20.8]
[1759393422254,8.78511087,223.78,223.74,21.49]
[1759393422456,9.50511087,223.78,223.74,20.8]
[1759393422657,8.78511087,223.78,223.74,20.8]
[1759393422848,8.78511087,223.78,223.75,0.69]
[1759393423254,8.78511087,223.78,223.74,25.26940912]
[1759393423471,15.2,223.77,223.76,20.8]
[1759393423649,15.2,223.77,223.76,21.49]
[1759393423845,15.2,223.77,223.76,20.8]
[1759393427180,15.2,223.77,223.76,25.959074]
[1759393427476,15.2,223.77,223.76,20.8]
[1759393434595,15.2,223.77,223.76,25.269074]
[1759393434780,15.2,223.77,223.76,25.979074]
[1759393436763,15.2,223.77,223.76,25.269074]
[1759393437984,15.2,223.77,223.76,25.979074]
[1759393438304,15.2,223.77,223.76,25.269074]
[1759393438507,15.2,223.77,223.76,25.979074]
[1759393438709,15.2,223.77,223.76,25.269074]
[1759393439003,15.2,223.77,223.76,25.979074]
[1759393439373,18.52410876,223.77,223.76,25.979074]
[1759393439590,3.32410876,223.77,223.76,25.979074]
[1759393439984,3.32410876,223.77,223.76,39.39799019]
[1759393440508,3.32410876,223.77,223.76,25.269074]
[1759393440685,3.32410876,223.77,223.76,25.979074]
[1759393440891,15.2,223.8,223.76,39.39799019]
[1759393441192,3.32475608,223.79,223.77,0.71]
[1759393441394,15.89,223.8,223.76,38.68799019]
[1759393441598,15.89,223.8,223.76,39.39799019]
[1759393442100,15.2,223.8,223.77,0.71]
[1759393442275,4.01663693,223.79,223.76,20.8]
[1759393442475,0.69,223.79,223.76,20.8]
[1759393442704,15.2,223.8,223.76,20.8]
[1759393442883,0.69,223.78,223.76,20.8]
[1759393443083,0.69,223.77,223.76,20.8]
[1759393443689,0.69,223.79,223.76,20.8]
[1759393443930,4.01885669,223.78,223.76,20.8]
[1759393444110,0.69,223.78,223.76,20.8]
[1759393445110,0.69,223.77,223.76,20.8]
[1759393445411,4.02369151,223.77,223.76,20.8]
[1759393446288,3.33369151,223.77,223.76,20.8]
[1759393450115,3.33369151,223.77,223.74,20.8]
[1759393450406,3.34026178,223.76,223.75,20.8]
[1759393450785,4.03026178,223.76,223.73,20.8]
[1759393450985,19.66858034,223.79,223.73,20.8]
[1759393450986,0.69,223.78,223.74,20.8]
[1759393451207,4.03031356,223.77,223.74,20.8]
[1759393451430,3.34031356,223.76,223.74,20.8]
[1759393451605,3.34031356,223.75,223.74,20.8]
[1759393452210,3.34251904,223.75,223.74,20.8]
[1759393455896,3.34251904,223.75,223.74,0.71]
[1759393456095,3.34251904,223.75,223.74,5.17947349]
[1759393456911,3.34251904,223.75,223.74,18.59898994]
[1759393458402,15.2,223.78,223.74,29.77267368]
[1759393458591,3.34593196,223.77,223.76,20.8]
[1759393459110,3.34593196,223.77,223.76,21.51]
[1759393460114,15.2,223.78,223.76,25.979074]
[1759393460307,15.2,223.78,223.77,0.71]
[1759393460492,18.54535557,223.78,223.77,0.71]
[1759393461020,18.54536883,223.78,223.76,38.68799019]
[1759393461201,15.2,223.78,223.76,39.39799019]
[1759393462108,15.2,223.8,223.77,0.69]
[1759393462289,3.34513944,223.79,223.76,25.269074]
[1759393462494,15.2,223.8,223.79,20.8]
[1759393464788,15.9,223.8,223.76,4.46890027]
[1759393465111,0.7,223.79,223.77,20.8]
[1759393465310,0.7,223.79,223.78,20.8]
[1759393468004,15.2,223.8,223.78,25.26867459]
[1759393468313,15.9,223.8,223.78,25.26867459]
[1759393468934,15.2,223.8,223.78,25.26867459]
[1759393469117,15.2,223.8,223.78,25.95867459]
[1759393469291,15.2,223.8,223.79,20.8]
[1759393469491,18.54417658,223.8,223.79,20.8]
[1759393470118,18.54417658,223.8,223.79,25.2684749]
[1759393471035,18.54417658,223.8,223.79,25.9584749]
[1759393471036,15.2,223.8,223.79,25.9584749]
[1759393472029,15.2,223.8,223.79,39.37619075]
[1759393472323,0.1,223.81,223.79,39.37619075]
[1759393472641,0.1,223.81,223.8,0.69]
[1759393473000,0.1,223.81,223.8,14.10531581]
[1759393473432,0.1,223.81,223.8,18.57359105]
[1759393474632,15.3,223.85,223.8,18.57359105]
[1759393474633,0.1,223.85,223.83,20.8]
[1759393474803,0.1,223.89,223.84,21.49]
[1759393475321,0.1,223.89,223.88,20.8]
[1759393477207,0.8,223.89,223.88,20.8]
[1759393477520,0.1,223.89,223.88,20.8]
[1759393478237,0.1,223.89,223.88,25.26667857]
[1759393478611,0.1,223.89,223.88,20.8]
[1759393479633,0.1,223.89,223.88,25.26667857]
[1759393480327,0.1,223.89,223.88,39.36899554]
[1759393486311,0.1,223.92,223.88,39.36899554]
[1759393486312,0.1,223.92,223.88,50.53569198]
[1759393486524,0.1,223.92,223.89,0.69]
[1759393486960,0.1,223.92,223.9,13.40752161]
[1759393487239,0.8,223.96,223.93,20.8]
[1759393487240,0.1,223.96,223.93,20.8]
[1759393487449,0.1,223.96,223.94,0.69]
[1759393487655,0.1,223.96,223.91,20.8]
[1759393487856,0.1,223.96,223.91,21.49]
[1759393488010,0.8,223.96,223.95,1.78758965]
[1759393488214,0.1,223.96,223.95,1.78758965]
[1759393488761,0.1,223.96,223.95,6.25287207]
[1759393489930,0.1,223.96,223.95,6.94287207]
[1759393493758,0.82,223.96,223.95,6.25287207]
[1759393493954,0.1,223.96,223.95,6.25287207]
[1759393495271,0.1,223.96,223.95,6.97287207]
[1759393496059,0.1,223.96,223.95,6.25287207]
[1759393496549,0.1,223.96,223.95,6.97287207]
[1759393497641,0.82,223.96,223.95,1.78758965]
[1759393497966,0.1,223.96,223.95,1.78758965]
[1759393498119,0.82,223.96,223.95,22.58758965]
[1759393498322,0.82,223.96,223.95,1.78758965]
[1759393498562,0.82,223.96,223.92,20.8]
[1759393498733,0.72,223.95,223.92,20.8]
[1759393499063,0.1,223.96,223.95,20.8]
[1759393499566,0.82,223.96,223.93,11.15950167]
[1759393499733,0.72,223.95,223.92,20.8]
[1759393500067,0.72,223.94,223.92,20.8]
[1759393500565,0.72,223.93,223.92,20.8]
[1759393500728,0.72,223.93,223.92,25.36445179]
[1759393500930,0.72,223.93,223.92,20.8]
[1759393501479,0.72,223.93,223.92,25.26470385]
[1759393501766,0.1,223.96,223.92,29.7304348]
[1759393501931,0.72,223.93,223.92,29.7304348]
[1759393502742,0.72,223.93,223.92,25.26470385]
[1759393502945,0.72,223.93,223.92,20.8]
[1759393503129,0.72,223.93,223.89,504.46496163]
[1759393503325,0.72,223.92,223.89,504.46496163]
[1759393503567,15.2,223.95,223.89,504.46496163]
[1759393503568,0.72,223.91,223.89,500.0]
[1759393503731,19.66627958,223.9,223.89,500.0]
[1759393504049,15.92,223.9,223.89,500.0]
[1759393505858,20.38627958,223.9,223.89,500.0]
[1759393506056,17.56795485,223.9,223.89,500.0]
[1759393508476,16.06275479,223.9,223.89,500.0]
[1759393509070,1.50520006,223.94,223.89,500.0]
[1759393509272,0.72,223.93,223.89,500.0]
[1759393509450,0.72,223.92,223.89,500.0]
[1759393509650,0.72,223.91,223.89,500.0]
[1759393509853,1.50520006,223.93,223.89,500.0]
[1759393509854,0.72,223.9,223.89,500.0]
[1759393510067,0.72,223.92,223.89,500.0]
[1759393510276,10.87647521,223.93,223.89,500.0]
[1759393510483,0.72,223.91,223.89,500.0]
[1759393510688,0.72,223.93,223.89,504.46644935]
[1759393511379,15.92,223.95,223.89,505.18644935]
[1759393511570,0.72,223.94,223.89,505.18644935]
[1759393512251,0.72,223.94,223.9,0.72]
[1759393512460,15.2,223.95,223.9,0.72]
[1759393512757,0.1,223.96,223.91,0.72]
[1759393512960,0.1,223.96,223.91,14.12991886]
[1759393512961,0.82,223.96,223.91,14.12991886]
[1759393513570,0.82,223.96,223.92,0.72]
[1759393513769,0.82,223.96,223.91,13.40991886]
[1759393514087,0.72,223.95,223.89,505.18644935]
[1759393514252,0.72,223.94,223.9,13.40991886]
[1759393514452,0.72,223.93,223.9,13.40991886]
[1759393514681,0.72,223.93,223.91,31.12]
[1759393514983,0.72,223.95,223.91,31.12]
[1759393516377,0.1,223.96,223.91,35.58597152]
[1759393516582,0.1,223.96,223.92,14.13051831]
[1759393516769,0.1,223.96,223.93,31.12]
[1759393517087,0.72,223.95,223.93,31.12]
[1759393517261,0.1,223.96,223.93,31.12]
[1759393518489,15.2,223.95,223.93,31.12]
[1759393521701,15.2,223.95,223.93,31.84]
[1759393522490,15.2,223.95,223.93,36.30561538]
[1759393523160,15.2,223.95,223.93,31.12]
[1759393523856,15.2,223.95,223.93,31.83]
[1759393524091,15.2,223.95,223.93,36.29566457]
[1759393524391,15.2,223.94,223.93,49.70558343]
[1759393526989,15.2,223.94,223.93,48.99558343]
[1759393527395,15.2,223.94,223.93,49.70558343]
[1759393528696,15.2,223.94,223.93,17.87558343]
[1759393528869,15.2,223.94,223.93,48.95558343]
[1759393529291,15.2,223.94,223.93,48.95560009]
[1759393529798,15.2,223.94,223.93,49.66560009]
[1759393530386,15.3,223.96,223.95,20.8]
[1759393530574,15.3,223.96,223.95,51.88]
[1759393530888,15.3,223.96,223.95,57.05528242]
[1759393531090,15.3,223.96,223.95,70.46400255]
[1759393531482,0.1,223.96,223.95,70.46400255]
[1759393532762,0.1,224.0,223.95,81.62720862]
[1759393532966,0.1,224.0,223.96,0.71]
[1759393533176,0.1,224.0,223.99,20.8]
[1759393533394,0.1,224.0,223.99,52.59]
[1759393533973,0.1,224.0,223.99,57.05306177]
[1759393535177,0.1,224.0,223.99,61.51754679]
[1759393536797,0.78,224.0,223.99,4.46306177]
[1759393536981,0.78,224.0,223.99,31.1]
[1759393538107,5.24428571,224.0,223.95,20.8]
[1759393538278,5.24428571,224.0,223.96,31.1]
[1759393538279,0.68,223.99,223.96,31.1]
[1759393538475,0.68,223.98,223.96,31.1]
[1759393539471,0.78,224.0,223.96,31.1]
[1759393539674,0.68,223.99,223.96,31.1]
[1759393540886,4.56438774,224.0,223.96,31.1]
[1759393541087,0.68,223.98,223.96,31.1]
[1759393542882,15.2,223.99,223.96,31.1]
[1759393543080,15.2,223.99,223.97,0.71]
[1759393543274,15.2,223.99,223.98,31.1]
[1759393543906,15.88,223.99,223.98,31.1]
[1759393544214,15.2,223.98,223.92,20.8]
[1759393544411,0.68,223.97,223.93,31.1]
[1759393544699,0.68,223.96,223.93,31.1]
[1759393547716,0.68,223.95,223.92,20.8]
[1759393547915,15.2,223.94,223.92,51.9]
[1759393549818,15.2,223.94,223.92,52.61]
[1759393550004,15.2,223.94,223.93,0.71]
[1759393550317,15.2,223.94,223.92,51.9]
[1759393550493,15.2,223.94,223.92,52.61]
[1759393550992,15.2,223.93,223.92,52.61]
[1759393552284,15.2,223.93,223.92,51.9]
[1759393556889,15.87,223.93,223.92,51.9]
[1759393557289,20.33568123,223.93,223.89,500.0]
[1759393557508,0.67,223.92,223.9,31.08]
[1759393558015,0.67,223.92,223.89,500.0]
[1759393558197,5.13589868,223.92,223.9,31.08]
[1759393558396,15.87,223.91,223.89,531.08]
[1759393558626,0.67,223.9,223.89,500.0]
[1759393560688,5.13627958,223.9,223.89,500.0]
[1759393567206,8.46688027,223.93,223.89,500.0]
[1759393567416,15.2,223.92,223.9,0.72]
[1759393567618,10.87647521,223.97,223.91,31.08]
[1759393567800,23.66560346,223.96,223.91,31.8]
[1759393567999,20.33517083,223.96,223.91,31.8]
[1759393568199,19.66517083,223.96,223.92,0.72]
[1759393568405,20.33517083,223.96,223.91,31.08]
[1759393568609,0.67,223.95,223.91,31.8]
[1759393570030,0.67,223.94,223.91,31.08]
[1759393570509,0.67,223.93,223.91,31.08]
[1759393570712,0.67,223.93,223.9,31.08]
[1759393571404,0.67,223.92,223.89,500.0]
[1759393571713,0.67,223.91,223.89,500.0]
[1759393571922,11.54647521,223.93,223.89,500.0]
[1759393572117,4.46588067,223.92,223.89,500.0]
[1759393572320,5.13588067,223.92,223.89,500.0]
[1759393573416,4.46588067,223.92,223.89,500.0]
[1759393573629,5.13588067,223.92,223.89,500.0]
[1759393574920,19.66610946,223.91,223.89,500.0]
[1759393575215,15.2,223.91,223.9,0.72]
[1759393576137,19.66506011,223.97,223.9,0.72]
[1759393576431,19.66506011,223.97,223.91,31.1]
[1759393576627,19.66506011,223.97,223.92,0.72]
[1759393576835,19.66506011,223.97,223.93,31.84]
[1759393577426,19.66506011,223.97,223.93,31.12]
[1759393577733,20.33506011,223.97,223.92,31.1]
[1759393577913,20.33506011,223.97,223.92,31.82]
[1759393579066,19.66506011,223.97,223.92,31.82]
[1759393579213,0.67,223.96,223.92,31.82]
[1759393580123,4.46528242,223.95,223.92,31.82]
[1759393581542,0.67,223.96,223.92,31.82]
[1759393582435,19.66506232,223.97,223.92,31.1]
[1759393582638,3.33330725,223.96,223.93,0.72]
[1759393582854,19.66506232,223.97,223.93,0.72]
[1759393583050,3.33330597,223.96,223.93,0.72]
[1759393583348,20.32506232,223.97,223.93,0.72]
[1759393583551,3.33390358,223.96,223.93,0.72]
[1759393583853,15.86,223.97,223.93,0.72]
[1759393584153,3.33432698,223.96,223.92,31.1]
[1759393584329,20.32491905,223.97,223.92,31.77]
[1759393584530,3.33432762,223.96,223.93,0.67]
[1759393584731,15.2,223.97,223.93,0.67]
[1759393584943,3.33432762,223.96,223.93,0.67]
[1759393585125,19.66489198,223.97,223.92,31.1]
[1759393585331,4.02489552,223.96,223.92,31.1]
[1759393585529,0.69,223.95,223.92,31.1]
[1759393586358,0.69,223.96,223.92,31.1]
[1759393586572,4.46528242,223.95,223.92,31.1]
[1759393586761,15.2,223.94,223.92,31.1]
[1759393587132,15.2,223.94,223.92,31.77]
[1759393587441,15.2,223.94,223.92,31.1]
[1759393589044,15.2,223.94,223.91,31.08]
[1759393589352,15.2,223.94,223.91,31.75]
[1759393589549,15.2,223.94,223.92,0.67]
[1759393590227,19.66550348,223.94,223.91,31.08]
[1759393591458,20.35550348,223.94,223.91,31.08]
[1759393591642,0.69,223.93,223.91,31.08]
[1759393592148,19.66550348,223.94,223.91,31.08]
[1759393592629,19.66550348,223.94,223.91,31.75]
[1759393592630,15.2,223.93,223.91,31.75]
[1759393593828,15.2,223.93,223.91,31.08]
[1759393594096,15.2,223.93,223.91,31.75]
[1759393595133,19.66575025,223.93,223.91,31.08]
[1759393595330,20.35575025,223.93,223.91,31.08]
[1759393596148,19.66575025,223.93,223.91,31.08]
[1759393596346,20.35575025,223.93,223.91,31.08]
[1759393597173,19.66575025,223.93,223.91,31.08]
[1759393597342,20.35575025,223.93,223.91,31.08]
[1759393598165,19.66575025,223.93,223.91,31.08]